[Event "VII Famalicao Open 2019"]
[Site "Famalicao"]
[Date "2019.08.03"]
[Round "9.7"]
[White "Fidalgo, Andre Neves"]
[Black "Dias, Ivo"]
[Result "1/2-1/2"]
[ECO "A46"]
[WhiteElo "2262"]
[BlackElo "2121"]
[Annotator "NA"]
[PlyCount "52"]
[EventDate "2019.07.28"]
[EventType "swiss"]
[EventCountry "POR"]
[SourceTitle "playchess.com"]
[Source "ChessBase"]
[SourceQuality "1"]
[TimeControl "5400+30"]

1. d4 {[%emt 0:00:00]} Nf6 {[%emt 0:00:04]} 2. Nf3 {[%emt 0:00:00]} e6 {[%emt 0:00:28]} 3. g3 {[%emt 0:00:22]} c5 {[%emt 0:00:19]} 4. Bg2 {[%emt 0:00:48]} cxd4 {[%emt 0:00:20]} 5. Nxd4 {[%emt 0:00:20]} d5 {[%emt 0:00:18]} 6. O-O {[%emt 0:00:15]} e5 {[%emt 0:00:46]} 7. Nb3 {[%emt 0:00:20]} Be7 {[%emt 0:00:14]} 8. Bg5 {[%emt 0:02:10]} Nbd7 {[%emt 0:08:43]} 9. Nc3 {[%emt 0:08:06]} d4 {[%emt 0:00:39]} 10. Bxf6 {[%emt 0:05:40]} Nxf6 {[%emt 0:00:28]} 11. Na4 {[%emt 0:01:26]} Qc7 {[%emt 0:12:35]} 12. c3 {[%emt 0:02:35]} Bd7 {[%emt 0:00:14]} 13. Nd2 {[%emt 0:00:51]} Qa5 {[%emt 0:18:10]} 14. b3 {[%emt 0:00:11]} Bxa4 {[%emt 0:00:29]} 15. bxa4 {[%emt 0:00:06]} dxc3 {[%emt 0:00:27]} 16. Nc4 {[%emt 0:03:43]} Qc7 {[%emt 0:00:49]} 17. Qb3 {[%emt 0:00:32]} Rc8 {[%emt 0:06:29]} 18. Ne3 {[%emt 0:04:47]} O-O {[%emt 0:01:40]} 19. Rfc1 {[%emt 0:01:37]} b6 {[%emt 0:02:05]} 20. Bh3 {[%emt 0:02:11]} Rcd8 {[%emt 0:00:17]} 21. Rxc3 {[%emt 0:01:36]} Bc5 {[%emt 0:00:17]} 22. Rac1 {[%emt 0:17:33]} Qe7 {[%emt 0:00:12]} 23. Bg2 {[%emt 0:00:20]} Qc7 {[%emt 0:00:08]} 24. Bh3 {[%emt 0:00:05]} Qe7 {[%emt 0:00:04]} 25. Bg2 {[%emt 0:00:04]} Qc7 {[%emt 0:00:04]} 26. Bh3 {[%emt 0:00:05]} Qe7 1/2-1/2

[Event "VII Famalicao Open 2019"]
[Site "Famalicao"]
[Date "2019.08.03"]
[Round "9.8"]
[White "Damaso, Rui"]
[Black "Tadevosyan, Aspet"]
[Result "1-0"]
[ECO "B90"]
[WhiteElo "2425"]
[BlackElo "2144"]
[Annotator "NA"]
[PlyCount "65"]
[EventDate "2019.07.28"]
[EventType "swiss"]
[EventCountry "POR"]
[SourceTitle "playchess.com"]
[Source "ChessBase"]
[SourceQuality "1"]
[TimeControl "5400+30"]

1. e4 {[%emt 0:06:45]} c5 {[%emt 0:00:00]} 2. Nc3 {[%emt 0:00:49]} d6 {[%emt 0:00:00]} 3. Nf3 {[%emt 0:01:03]} Nf6 {[%emt 0:00:41]} 4. d4 {[%emt 0:00:18]} cxd4 {[%emt 0:00:09]} 5. Nxd4 {[%emt 0:00:03]} a6 {[%emt 0:00:06]} 6. Be3 {[%emt 0:02:33]} e5 {[%emt 0:00:24]} 7. Nf3 {[%emt 0:00:19]} Qc7 {[%emt 0:01:19]} 8. a4 {[%emt 0:04:02]} Be7 {[%emt 0:02:46]} 9. a5 {[%emt 0:03:25]} O-O {[%emt 0:00:54]} 10. Bb6 {[%emt 0:05:06]} Qc6 {[%emt 0:03:58]} 11. Ra4 {[%emt 0:01:55]} Be6 {[%emt 0:05:32]} 12. Ng5 {[%emt 0:06:54]} Nbd7 {[%emt 0:00:38]} 13. Nxe6 {[%emt 0:12:55]} Nxb6 {[%emt 0:00:49]} 14. axb6 {[%emt 0:04:07]} fxe6 {[%emt 0:00:13]} 15. Bc4 {[%emt 0:00:48]} Qd7 {[%emt 0:19:58]} 16. Qd3 {[%emt 0:04:18]} Rfe8 {[%emt 0:34:37]} 17. Bb3 {[%emt 0:03:40]} Bf8 {[%emt 0:03:56]} 18. O-O {[%emt 0:14:04]} Qc6 {[%emt 0:07:28]} 19. Qh3 {[%emt 0:04:41]} Kf7 {[%emt 0:04:17]} 20. Qe3 {[%emt 0:00:27]} Kg8 {[%emt 0:00:52]} 21. Rc4 {[%emt 0:03:48]} Qd7 {[%emt 0:00:50]} 22. Ba4 {[%emt 0:01:52]} Qd8 {[%emt 0:00:09]} 23. Bxe8 {[%emt 0:00:09]} Qxe8 {[%emt 0:00:25]} 24. Rc7 {[%emt 0:01:54]} d5 {[%emt 0:00:37]} 25. exd5 {[%emt 0:00:24]} exd5 {[%emt 0:00:03]} 26. Qe2 {[%emt 0:00:39]} Rb8 {[%emt 0:00:42]} 27. Rd1 {[%emt 0:03:27]} Qe6 {[%emt 0:00:25]} 28. Qd3 {[%emt 0:01:02]} d4 {[%emt 0:02:46]} 29. Ne4 {[%emt 0:00:40]} Qxb6 {[%emt 0:00:23]} 30. Qc4+ {[%emt 0:02:39]} Kh8 {[%emt 0:00:09]} 31. Ng5 {[%emt 0:00:05]} h6 {[%emt 0:00:49]} 32. Nf7+ {[%emt 0:01:12]} Kh7 {[%emt 0:00:03]} 33. Nxe5 {[%emt 0:00:12]} 1-0

[Event "VII Famalicao Open 2019"]
[Site "Famalicao"]
[Date "2019.08.03"]
[Round "9.9"]
[White "Fernandes, Antonio"]
[Black "Pinheiro, Albano"]
[Result "1-0"]
[ECO "B31"]
[WhiteElo "2376"]
[BlackElo "1989"]
[Annotator "NA RC"]
[PlyCount "125"]
[EventDate "2019.07.28"]
[EventType "swiss"]
[EventCountry "POR"]
[SourceTitle "playchess.com"]
[Source "ChessBase"]
[SourceQuality "1"]
[TimeControl "5400+30"]

1. e4 {[%emt 0:02:00]} c5 {[%emt 0:04:26]} 2. Nf3 {[%emt 0:00:40]} Nc6 {[%emt 0:00:13]} 3. Bb5 {[%emt 0:00:22]} g6 {[%emt 0:00:05]} 4. O-O {[%emt 0:00:18]} Bg7 {[%emt 0:00:06]} 5. Re1 {[%emt 0:03:21]} e5 {[%emt 0:00:09]} 6. c3 {[%emt 0:02:50]} Nge7 {[%emt 0:00:40]} 7. d4 {[%emt 0:00:55]} cxd4 {[%emt 0:00:09]} 8. cxd4 {[%emt 0:00:01]} exd4 {[%emt 0:00:47]} 9. Bf4 {[%emt 0:06:44]} a6 {[%emt 0:04:37]} 10. Ba4 {[%emt 0:33:05]} b5 {[%emt 0:01:32]} 11. Bb3 {[%emt 0:01:23]} d6 {[%emt 0:00:22]} 12. Na3 {[%emt 0:00:38]} O-O {[%emt 0:00:51]} 13. h3 {[%emt 0:00:12]} d5 {[%emt 0:10:07]} 14. e5 {[%emt 0:01:11]} Be6 {[%emt 0:06:12]} 15. Nc2 {[%emt 0:02:31]} Rc8 {[%emt 0:02:19]} 16. Ncxd4 {[%emt 0:02:34]} Nxd4 {[%emt 0:00:32]} 17. Nxd4 {[%emt 0:00:03]} Nc6 {[%emt 0:01:51]} 18. Nxc6 {[%emt 0:03:16]} Rxc6 {[%emt 0:01:46]} 19. Qd2 {[%emt 0:00:07]} Qc7 {[%emt 0:08:17]} 20. Rac1 {[%emt 0:01:44]} Rd8 {[%emt 0:02:38]} 21. Bg5 {[%emt 0:05:15]} Rd7 {[%emt 0:01:16]} 22. Rxc6 {[%emt 0:22:04]} Qxc6 {[%emt 0:00:12]} 23. Qd4 {[%emt 0:00:11]} Qb7 {[%emt 0:07:20]} 24. Rc1 {[%emt 0:03:23]} Rc7 {[%emt 0:05:51]} 25. Rd1 {[%emt 0:00:07]} Rd7 {[%emt 0:00:16]} 26. Be3 {[%emt 0:00:26]} h5 {[%emt 0:01:22]} 27. f3 {[%emt 0:03:25]} Qb8 {[%emt 0:03:57]} 28. f4 {[%emt 0:00:05]} Qb7 {[%emt 0:00:56]} 29. Rd2 {[%emt 0:00:52]} Bf8 {[%emt 0:03:23]} 30. Bd1 {[%emt 0:00:51]} Rc7 {[%emt 0:01:14]} 31. Rc2 {[%emt 0:02:26]} Rxc2 32. Bxc2 {[%emt 0:00:02]} Qc6 {[%emt 0:02:34]} 33. Bd3 {[%emt 0:00:09]} Qc7 {[%emt 0:03:48]} 34. Kf2 {[%emt 0:00:41]} Be7 {[%emt 0:00:20]} 35. a3 {[%emt 0:00:30]} Kf8 {[%emt 0:02:55]} 36. Ke2 {[%emt 0:01:16]} Ke8 {[%emt 0:00:48]} 37. Kf3 {[%emt 0:00:58]} Kf8 {[%emt 0:00:37]} 38. Qb6 {[%emt 0:01:47]} Qxb6 {[%emt 0:00:28]} 39. Bxb6 {[%emt 0:00:01]} Ke8 {[%emt 0:00:37]} 40. g4 {[%emt 0:00:10]} hxg4+ {[%emt 0:00:38]} 41. hxg4 {[%emt 0:00:01]} Bd7 {[%emt 0:02:58]} 42. f5 {[%emt 0:00:08]} gxf5 {[%emt 0:00:15]} 43. gxf5 {[%emt 0:00:01]} f6 {[%emt 0:01:04]} 44. e6 {[%emt 0:01:18]} Bc6 {[%emt 0:00:26]} 45. Bd4 {[%emt 0:00:13]} Kd8 {[%emt 0:00:55]} 46. Bb1 {[%emt 0:02:12]} Ke8 {[%emt 0:00:41]} 47. b4 {[%emt 0:00:14]} Kf8 {[%emt 0:00:56]} 48. Ba2 {[%emt 0:00:46]} Kg7 {[%emt 0:00:35]} 49. Ke3 {[%emt 0:00:32]} Bd6 {[%emt 0:04:03]} 50. Kd3 {[%emt 0:00:07]} Be5 {[%emt 0:01:23]} 51. Bb3 {[%emt 0:00:03]} Bb7 {[%emt 0:01:44]} 52. Bd1 {[%emt 0:00:09]} Kf8 {[%emt 0:08:33]} 53. Bc5+ {[%emt 0:00:30]} Kg7 {[%emt 0:00:20]} 54. Bh5 {[%emt 0:00:42]} Bc8 {[%emt 0:01:01]} 55. Ke2 {[%emt 0:00:53]} Kh6 {[%emt 0:00:57]} 56. e7 {[%emt 0:00:05]} Bd7 {[%emt 0:00:05]} 57. e8=Q {[%emt 0:00:09]} Bxe8 {[%emt 0:00:07]} 58. Bxe8 {[%emt 0:00:10]} Kg5 {[%emt 0:00:12]} 59. Bc6 {[%emt 0:01:16]} Bb2 {[%emt 0:01:09]} 60. Bxd5 {[%emt 0:00:03]} Bxa3 {[%emt 0:00:16]} 61. Bb7 {[%emt 0:00:10]} a5 {[%emt 0:02:16]} 62. Be3+ {[%emt 0:00:02]} Kxf5 {[%emt 0:00:12]} 63. bxa5 {[%emt 0:00:02]} 1-0

[Event "VII Famalicao Open 2019"]
[Site "Famalicao"]
[Date "2019.08.03"]
[Round "9.10"]
[White "Santos, Jose Guilherme B Lim"]
[Black "Martins, Diogo Faria Oliveira"]
[Result "1-0"]
[ECO "B36"]
[WhiteElo "2155"]
[BlackElo "1984"]
[Annotator "NA"]
[PlyCount "133"]
[EventDate "2019.07.28"]
[EventType "swiss"]
[EventCountry "POR"]
[SourceTitle "playchess.com"]
[Source "ChessBase"]
[SourceQuality "1"]
[TimeControl "5400+30"]

1. e4 {[%emt 0:00:00]} c5 {[%emt 0:05:46]} 2. Nf3 {[%emt 0:00:00]} g6 {[%emt 0:00:26]} 3. c4 {[%emt 0:00:00]} Nc6 {[%emt 0:00:06]} 4. d4 {[%emt 0:00:01]} cxd4 {[%emt 0:00:03]} 5. Nxd4 {[%emt 0:00:06]} Nf6 {[%emt 0:00:03]} 6. Nc3 {[%emt 0:00:10]} Nxd4 {[%emt 0:00:04]} 7. Qxd4 {[%emt 0:00:04]} d6 {[%emt 0:00:04]} 8. Be3 {[%emt 0:01:56]} Bg7 {[%emt 0:00:05]} 9. f3 {[%emt 0:01:54]} O-O {[%emt 0:00:06]} 10. Qd2 {[%emt 0:00:01]} a5 {[%emt 0:00:20]} 11. Be2 {[%emt 0:00:05]} a4 {[%emt 0:00:03]} 12. O-O {[%emt 0:00:22]} Qa5 {[%emt 0:00:02]} 13. Rac1 {[%emt 0:14:48]} Be6 {[%emt 0:00:20]} 14. Nd5 {[%emt 0:16:08]} Qxd2 {[%emt 0:01:11]} 15. Nxe7+ {[%emt 0:06:03]} Kh8 {[%emt 0:00:05]} 16. Bxd2 {[%emt 0:00:02]} Rfe8 {[%emt 0:00:10]} 17. Nd5 {[%emt 0:00:26]} Nxd5 {[%emt 0:00:42]} 18. cxd5 {[%emt 0:01:24]} Bxd5 {[%emt 0:00:05]} 19. Bb5 {[%emt 0:07:57]} Re5 {[%emt 0:00:11]} 20. Bc3 {[%emt 0:07:41]} Bxa2 {[%emt 0:00:14]} 21. Bxe5 {[%emt 0:00:04]} Bxe5 {[%emt 0:00:07]} 22. Rc2 {[%emt 0:10:00]} Ra5 {[%emt 0:02:49]} 23. Be2 {[%emt 0:05:55]} b5 {[%emt 0:00:07]} 24. f4 {[%emt 0:07:20]} Bd4+ {[%emt 0:15:37]} 25. Kh1 {[%emt 0:00:07]} b4 {[%emt 0:00:15]} 26. Rd1 {[%emt 0:03:45]} Bc5 {[%emt 0:01:52]} 27. Bc4 {[%emt 0:00:57]} b3 {[%emt 0:18:21]} 28. Rc3 {[%emt 0:02:19]} Bb4 {[%emt 0:00:42]} 29. Rcd3 {[%emt 0:02:38]} f6 {[%emt 0:06:08]} 30. Rd5 {[%emt 0:06:24]} Rxd5 {[%emt 0:02:02]} 31. Bxd5 {[%emt 0:00:43]} Kg7 {[%emt 0:02:26]} 32. Rd4 {[%emt 0:02:36]} a3 {[%emt 0:00:51]} 33. bxa3 {[%emt 0:00:04]} Bxa3 {[%emt 0:00:48]} 34. Rd1 {[%emt 0:00:20]} Bb2 {[%emt 0:05:47]} 35. g3 {[%emt 0:00:51]} f5 {[%emt 0:00:36]} 36. exf5 {[%emt 0:00:41]} gxf5 {[%emt 0:00:02]} 37. Kg1 {[%emt 0:00:18]} Kf6 {[%emt 0:01:23]} 38. Kf2 {[%emt 0:00:20]} Ke7 {[%emt 0:00:14]} 39. Ke3 {[%emt 0:01:32]} Ba3 {[%emt 0:03:09]} 40. Rd3 {[%emt 0:00:56]} Bc5+ {[%emt 0:00:40]} 41. Ke2 {[%emt 0:00:39]} h6 {[%emt 0:03:04]} 42. Bxb3 {[%emt 0:00:53]} Bb1 {[%emt 0:00:09]} 43. Rd1 {[%emt 0:00:04]} Be4 {[%emt 0:00:11]} 44. Bc4 {[%emt 0:01:16]} Bc6 {[%emt 0:01:06]} 45. Bd5 {[%emt 0:00:50]} Bb5+ {[%emt 0:00:14]} 46. Kf3 {[%emt 0:00:12]} Kf6 {[%emt 0:00:55]} 47. Ra1 {[%emt 0:00:59]} Be8 {[%emt 0:02:19]} 48. h3 {[%emt 0:00:21]} h5 {[%emt 0:00:31]} 49. Ra8 {[%emt 0:00:40]} Bb5 {[%emt 0:02:46]} 50. Kg2 {[%emt 0:01:02]} Be3 {[%emt 0:00:43]} 51. Rh8 {[%emt 0:00:22]} Kg6 {[%emt 0:00:14]} 52. Bf3 {[%emt 0:00:33]} h4 {[%emt 0:00:43]} 53. Rxh4 {[%emt 0:00:22]} Bd4 {[%emt 0:00:20]} 54. Rh5 {[%emt 0:00:29]} Bc4 {[%emt 0:01:10]} 55. Rg5+ {[%emt 0:00:12]} Kf6 {[%emt 0:00:09]} 56. g4 {[%emt 0:00:20]} Be6 {[%emt 0:00:42]} 57. Be2 {[%emt 0:01:07]} Be3 {[%emt 0:00:38]} 58. Kf3 {[%emt 0:00:32]} Bc1 {[%emt 0:00:14]} 59. Bd3 {[%emt 0:00:09]} fxg4+ {[%emt 0:00:34]} 60. hxg4 {[%emt 0:00:06]} Bb3 {[%emt 0:00:15]} 61. Rb5 {[%emt 0:00:41]} Bd1+ {[%emt 0:00:10]} 62. Kg3 {[%emt 0:00:30]} Bd2 {[%emt 0:00:07]} 63. g5+ {[%emt 0:00:01]} Ke7 {[%emt 0:00:59]} 64. Rb1 {[%emt 0:00:14]} Bh5 {[%emt 0:00:19]} 65. g6 {[%emt 0:00:43]} Kf6 {[%emt 0:00:25]} 66. Rh1 {[%emt 0:00:10]} Bxg6 {[%emt 0:00:23]} 67. Rh6 {[%emt 0:00:03]} 1-0

[Event "VII Famalicao Open 2019"]
[Site "Famalicao"]
[Date "2019.08.03"]
[Round "9.11"]
[White "Rodrigues, Afonso"]
[Black "Ribeiro, Bruno"]
[Result "1-0"]
[ECO "D00"]
[WhiteElo "2134"]
[BlackElo "2102"]
[Annotator "NA"]
[PlyCount "54"]
[EventDate "2019.07.28"]
[EventType "swiss"]
[EventCountry "POR"]
[SourceTitle "playchess.com"]
[Source "ChessBase"]
[SourceQuality "1"]
[TimeControl "5400+30"]

1. d4 {[%emt 0:00:00]} d5 {[%emt 0:00:00]} 2. Bf4 {[%emt 0:00:00]} Nf6 {[%emt 0:00:00]} 3. e3 {[%emt 0:00:00]} c5 {[%emt 0:00:13]} 4. c3 {[%emt 0:00:00]} Nc6 {[%emt 0:00:11]} 5. Nd2 {[%emt 0:00:20]} e6 {[%emt 0:00:36]} 6. Ngf3 {[%emt 0:00:32]} cxd4 {[%emt 0:00:25]} 7. exd4 {[%emt 0:00:14]} Nh5 {[%emt 0:00:16]} 8. Bg5 {[%emt 0:05:10]} f6 {[%emt 0:00:05]} 9. Bh4 {[%emt 0:00:29]} Bd6 {[%emt 0:02:38]} 10. Bg3 {[%emt 0:19:04]} Nxg3 {[%emt 0:13:40]} 11. hxg3 {[%emt 0:00:03]} e5 {[%emt 0:00:12]} 12. dxe5 {[%emt 0:02:23]} fxe5 {[%emt 0:00:12]} 13. Nb3 {[%emt 0:02:01]} e4 {[%emt 0:38:53]} 14. Nfd4 {[%emt 0:01:55]} e3 {[%emt 0:01:26]} 15. f4 {[%emt 0:10:09]} Qf6 {[%emt 0:01:32]} 16. Bd3 {[%emt 0:02:54]} g6 {[%emt 0:03:16]} 17. Qf3 {[%emt 0:09:25]} O-O {[%emt 0:01:28]} 18. Qxd5+ {[%emt 0:05:20]} Kg7 {[%emt 0:00:10]} 19. O-O-O {[%emt 0:02:29]} Bg4 {[%emt 0:01:27]} 20. Be2 {[%emt 0:00:27]} Ne7 {[%emt 0:03:26]} 21. Qb5 {[%emt 0:06:38]} a6 {[%emt 0:00:51]} 22. Qd3 {[%emt 0:02:12]} Bd7 {[%emt 0:02:07]} 23. Nf3 {[%emt 0:01:36]} Nf5 {[%emt 0:01:29]} 24. Ng5 {[%emt 0:11:51]} Bb5 {[%emt 0:03:33]} 25. Rxh7+ {[%emt 0:00:08]} Kg8 {[%emt 0:00:05]} 26. Qd5+ {[%emt 0:00:41]} Rf7 {[%emt 0:00:14]} 27. Rxf7 {[%emt 0:01:24]} Nh6 1-0

[Event "VII Famalicao Open 2019"]
[Site "Famalicao"]
[Date "2019.08.03"]
[Round "9.12"]
[White "Dumont, Andre"]
[Black "Fidalgo, Daniel"]
[Result "0-1"]
[ECO "A48"]
[WhiteElo "1948"]
[BlackElo "2087"]
[Annotator "NA"]
[PlyCount "62"]
[EventDate "2019.07.28"]
[EventType "swiss"]
[EventCountry "POR"]
[SourceTitle "playchess.com"]
[Source "ChessBase"]
[SourceQuality "1"]
[TimeControl "5400+30"]

1. d4 {[%emt 0:00:00]} Nf6 {[%emt 0:00:49]} 2. Nf3 {[%emt 0:00:00]} g6 {[%emt 0:00:12]} 3. b3 {[%emt 0:00:00]} Bg7 {[%emt 0:00:36]} 4. Bb2 {[%emt 0:00:01]} c5 {[%emt 0:02:56]} 5. e3 {[%emt 0:00:35]} O-O {[%emt 0:00:23]} 6. Be2 {[%emt 0:00:03]} d5 {[%emt 0:00:53]} 7. O-O {[%emt 0:00:08]} cxd4 {[%emt 0:02:27]} 8. exd4 {[%emt 0:00:02]} Nc6 {[%emt 0:00:18]} 9. Nbd2 {[%emt 0:00:27]} Bf5 {[%emt 0:03:26]} 10. c4 {[%emt 0:00:49]} Rc8 {[%emt 0:05:16]} 11. c5 {[%emt 0:01:22]} Ne4 {[%emt 0:01:35]} 12. a3 {[%emt 0:00:31]} Nxc5 {[%emt 0:00:22]} 13. dxc5 {[%emt 0:01:26]} Bxb2 {[%emt 0:01:40]} 14. b4 {[%emt 0:00:07]} Bxa1 {[%emt 0:06:52]} 15. Qxa1 {[%emt 0:02:30]} Bg4 {[%emt 0:02:05]} 16. Re1 {[%emt 0:00:34]} e6 {[%emt 0:00:53]} 17. Bb5 {[%emt 0:00:23]} Bxf3 {[%emt 0:00:25]} 18. Bxc6 {[%emt 0:00:25]} Rxc6 {[%emt 0:05:11]} 19. Nxf3 {[%emt 0:02:21]} Rc8 {[%emt 0:00:15]} 20. Qd4 {[%emt 0:06:11]} Re8 {[%emt 0:02:20]} 21. Qg4 {[%emt 0:06:42]} Qf6 {[%emt 0:00:47]} 22. Ne5 {[%emt 0:00:43]} Qf5 {[%emt 0:03:11]} 23. Qd4 {[%emt 0:02:19]} f6 {[%emt 0:00:43]} 24. Nd7 {[%emt 0:01:40]} Kg7 {[%emt 0:00:58]} 25. g4 {[%emt 0:03:32]} e5 {[%emt 0:01:18]} 26. Qxd5 {[%emt 0:01:03]} Qxg4+ {[%emt 0:00:12]} 27. Kh1 {[%emt 0:00:14]} Rcd8 {[%emt 0:00:17]} 28. Nxf6 {[%emt 0:00:07]} Kxf6 {[%emt 0:00:28]} 29. Qxb7 {[%emt 0:00:09]} Qd7 {[%emt 0:01:08]} 30. Qf3+ {[%emt 0:01:06]} Kg7 {[%emt 0:00:06]} 31. Qc3 {[%emt 0:01:01]} Qd2 {[%emt 0:01:24]} 0-1

[Event "VII Famalicao Open 2019"]
[Site "Famalicao"]
[Date "2019.08.03"]
[Round "9.13"]
[White "Fernandes, Joao Pedro"]
[Black "Silva, Mariana Sofia T."]
[Result "1-0"]
[ECO "B35"]
[WhiteElo "2080"]
[BlackElo "1872"]
[Annotator "NA"]
[PlyCount "57"]
[EventDate "2019.07.28"]
[EventType "swiss"]
[EventCountry "POR"]
[SourceTitle "playchess.com"]
[Source "ChessBase"]
[SourceQuality "1"]
[TimeControl "5400+30"]

1. e4 {[%emt 0:00:00]} c5 {[%emt 0:10:24]} 2. Nf3 {[%emt 0:00:00]} g6 {[%emt 0:00:00]} 3. d4 cxd4 {[%emt 0:00:26]} 4. Nxd4 {[%emt 0:00:04]} Nc6 {[%emt 0:00:07]} 5. Nc3 {[%emt 0:00:14]} Bg7 {[%emt 0:00:07]} 6. Be3 {[%emt 0:00:12]} Nf6 {[%emt 0:00:08]} 7. Bc4 {[%emt 0:00:07]} O-O {[%emt 0:00:17]} 8. Bb3 {[%emt 0:00:15]} Re8 {[%emt 0:00:07]} 9. O-O {[%emt 0:00:25]} d6 {[%emt 0:00:07]} 10. h3 {[%emt 0:00:44]} Na5 {[%emt 0:00:07]} 11. Qd2 {[%emt 0:00:19]} b6 {[%emt 0:04:28]} 12. Bh6 {[%emt 0:05:33]} Bh8 {[%emt 0:09:03]} 13. f4 {[%emt 0:05:28]} Nxb3 {[%emt 0:01:43]} 14. axb3 {[%emt 0:00:12]} Bb7 {[%emt 0:02:57]} 15. Rae1 {[%emt 0:15:16]} Qc8 {[%emt 0:06:57]} 16. e5 {[%emt 0:09:51]} Nd5 {[%emt 0:05:24]} 17. Nxd5 {[%emt 0:04:40]} Bxd5 {[%emt 0:00:30]} 18. c4 {[%emt 0:04:35]} Bb7 {[%emt 0:01:44]} 19. Qf2 {[%emt 0:06:33]} Qc5 {[%emt 0:04:20]} 20. f5 {[%emt 0:08:22]} Bxe5 {[%emt 0:08:02]} 21. fxg6 {[%emt 0:02:52]} fxg6 {[%emt 0:08:59]} 22. Rxe5 {[%emt 0:02:54]} Qxe5 {[%emt 0:00:16]} 23. Qf7+ {[%emt 0:01:49]} Kh8 {[%emt 0:00:08]} 24. Ne6 {[%emt 0:00:22]} Rg8 {[%emt 0:03:01]} 25. Ng5 {[%emt 0:03:33]} Qd4+ {[%emt 0:07:26]} 26. Kh1 {[%emt 0:01:20]} Bxg2+ {[%emt 0:02:10]} 27. Kxg2 {[%emt 0:00:09]} Qxb2+ {[%emt 0:02:52]} 28. Kh1 {[%emt 0:00:21]} Rg7 {[%emt 0:01:07]} 29. Qf8+ {[%emt 0:00:29]} 1-0

[Event "VII Famalicao Open 2019"]
[Site "Famalicao"]
[Date "2019.08.03"]
[Round "9.14"]
[White "Furtado, Dinis"]
[Black "Fernandes, Ricardo Paulos"]
[Result "0-1"]
[ECO "A05"]
[WhiteElo "1775"]
[BlackElo "2007"]
[Annotator "NA"]
[PlyCount "154"]
[EventDate "2019.07.28"]
[EventType "swiss"]
[EventCountry "POR"]
[SourceTitle "playchess.com"]
[Source "ChessBase"]
[SourceQuality "1"]
[TimeControl "5400+30"]

1. Nf3 {[%emt 0:01:41]} Nf6 {[%emt 0:00:00]} 2. g3 {[%emt 0:00:18]} g6 {[%emt 0:00:00]} 3. Bg2 {[%emt 0:01:05]} Bg7 {[%emt 0:00:00]} 4. O-O {[%emt 0:00:16]} O-O {[%emt 0:00:00]} 5. Re1 {[%emt 0:00:07]} d6 {[%emt 0:00:02]} 6. d4 {[%emt 0:00:53]} Nbd7 {[%emt 0:00:26]} 7. e4 {[%emt 0:01:40]} e5 {[%emt 0:01:22]} 8. c3 {[%emt 0:01:33]} Qe8 {[%emt 0:05:26]} 9. h3 {[%emt 0:07:41]} Nh5 {[%emt 0:06:36]} 10. Be3 {[%emt 0:05:29]} h6 {[%emt 0:13:22]} 11. Nh4 {[%emt 0:06:08]} Nb6 {[%emt 0:02:21]} 12. Nd2 {[%emt 0:02:50]} Kh7 {[%emt 0:24:22]} 13. Bf3 {[%emt 0:09:23]} Nf6 {[%emt 0:01:21]} 14. dxe5 {[%emt 0:01:59]} dxe5 {[%emt 0:01:21]} 15. Bg2 {[%emt 0:03:33]} Qe7 {[%emt 0:01:35]} 16. Qe2 {[%emt 0:01:15]} Be6 {[%emt 0:00:59]} 17. b3 {[%emt 0:00:47]} Nfd7 {[%emt 0:01:54]} 18. Rac1 {[%emt 0:10:24]} Rad8 {[%emt 0:01:37]} 19. Kh2 {[%emt 0:02:04]} c6 {[%emt 0:10:48]} 20. Bf1 {[%emt 0:09:05]} c5 {[%emt 0:13:32]} 21. c4 {[%emt 0:01:06]} Nb8 {[%emt 0:00:04]} 22. Nb1 {[%emt 0:02:04]} Nc6 {[%emt 0:00:07]} 23. Nc3 {[%emt 0:00:30]} Nd4 {[%emt 0:00:04]} 24. Bxd4 {[%emt 0:01:20]} cxd4 {[%emt 0:00:15]} 25. Nd5 {[%emt 0:00:22]} Bxd5 {[%emt 0:01:02]} 26. exd5 {[%emt 0:01:07]} f5 {[%emt 0:02:51]} 27. Rcd1 {[%emt 0:03:02]} Qc5 {[%emt 0:00:43]} 28. Qd2 {[%emt 0:02:43]} e4 {[%emt 0:00:44]} 29. f4 {[%emt 0:01:25]} a5 {[%emt 0:01:07]} 30. Qc2 {[%emt 0:03:32]} Nxd5 {[%emt 0:00:26]} 31. Rxe4 {[%emt 0:02:30]} Nb4 {[%emt 0:01:04]} 32. Qg2 {[%emt 0:02:24]} fxe4 33. Qxe4 {[%emt 0:00:07]} Qc6 {[%emt 0:00:18]} 34. Qb1 {[%emt 0:02:00]} Qd6 {[%emt 0:02:21]} 35. a3 {[%emt 0:00:15]} Na6 {[%emt 0:00:27]} 36. Nxg6 {[%emt 0:00:29]} Rf6 {[%emt 0:01:37]} 37. Ne5+ {[%emt 0:02:36]} Kg8 {[%emt 0:00:13]} 38. Bg2 {[%emt 0:01:37]} Nc7 {[%emt 0:01:16]} 39. Bxb7 {[%emt 0:01:45]} Re6 {[%emt 0:01:42]} 40. Qe4 {[%emt 0:01:55]} Bxe5 {[%emt 0:00:47]} 41. fxe5 {[%emt 0:01:10]} Qxe5 {[%emt 0:00:32]} 42. Qg4+ {[%emt 0:02:47]} Qg5 {[%emt 0:00:07]} 43. Rxd4 {[%emt 0:01:00]} Rxd4 {[%emt 0:01:48]} 44. Qxd4 {[%emt 0:00:26]} Re3 {[%emt 0:00:33]} 45. Qd6 {[%emt 0:01:36]} Qe5 {[%emt 0:01:00]} 46. Qg6+ {[%emt 0:00:14]} Qg7 {[%emt 0:00:09]} 47. Qd6 {[%emt 0:00:38]} Ne8 {[%emt 0:00:18]} 48. Qf4 {[%emt 0:01:00]} Re7 {[%emt 0:03:19]} 49. Bg2 {[%emt 0:00:38]} Nf6 {[%emt 0:00:35]} 50. c5 {[%emt 0:00:27]} Nh5 {[%emt 0:00:53]} 51. Qd6 {[%emt 0:02:19]} Qxg3+ {[%emt 0:01:27]} 52. Qxg3+ {[%emt 0:00:09]} Nxg3 {[%emt 0:00:01]} 53. Kxg3 {[%emt 0:00:10]} Re3+ {[%emt 0:00:35]} 54. Kf4 {[%emt 0:00:09]} Re7 {[%emt 0:00:56]} 55. Bd5+ {[%emt 0:00:19]} Kf8 {[%emt 0:00:28]} 56. c6 {[%emt 0:00:43]} Ke8 {[%emt 0:00:08]} 57. b4 {[%emt 0:00:38]} Kd8 {[%emt 0:00:29]} 58. b5 {[%emt 0:00:22]} Kc7 {[%emt 0:00:03]} 59. a4 {[%emt 0:00:10]} Re1 {[%emt 0:00:34]} 60. Be4 {[%emt 0:00:39]} Rc1 {[%emt 0:00:25]} 61. Bd3 {[%emt 0:00:47]} Rc5 {[%emt 0:01:05]} 62. h4 {[%emt 0:00:22]} Rd5 {[%emt 0:00:26]} 63. Ke3 {[%emt 0:01:29]} Rh5 {[%emt 0:00:06]} 64. Kd4 {[%emt 0:00:44]} Rxh4+ {[%emt 0:00:23]} 65. Be4 {[%emt 0:00:29]} Rh5 {[%emt 0:00:14]} 66. Bd5 {[%emt 0:00:39]} Kb6 {[%emt 0:00:02]} 67. Be4 {[%emt 0:00:24]} Rg5 {[%emt 0:00:07]} 68. Bf3 {[%emt 0:00:18]} h5 {[%emt 0:00:35]} 69. Ke4 {[%emt 0:00:09]} Rc5 {[%emt 0:01:19]} 70. Kd4 {[%emt 0:00:12]} h4 {[%emt 0:00:09]} 71. Ke3 {[%emt 0:01:05]} h3 {[%emt 0:01:00]} 72. Kf2 {[%emt 0:00:28]} Rg5 {[%emt 0:00:11]} 73. Kf1 {[%emt 0:00:59]} Rf5 {[%emt 0:00:36]} 74. Ke2 {[%emt 0:01:26]} h2 {[%emt 0:00:09]} 75. Bh1 {[%emt 0:00:30]} Rg5 {[%emt 0:00:07]} 76. Kf2 {[%emt 0:00:53]} Rg1 {[%emt 0:00:07]} 77. Bf3 {[%emt 0:00:25]} h1=Q {[%emt 0:00:05]} 0-1